[Event "*** SCC Grand Prix: Titled Tuesday Blitz"]
[Site "Chess.com"]
[Date "2020.10.13"]
[Round "5"]
[White "vaishali2001"]
[Black "Cayse"]
[Result "1-0"]
[WhiteElo "2575"]
[BlackElo "2710"]
[TimeControl "180+1"]
[EndTime "10:55:46 PDT"]
[Termination "vaishali2001 won by resignation"]

1. d4 {[%clk 0:02:58.3]} 1... Nf6 {[%clk 0:02:59.4]} 2. Bf4 {[%clk 0:02:56.4]}
2... e6 {[%clk 0:02:58.9]} 3. e3 {[%clk 0:02:53.1]} 3... b6 {[%clk 0:02:58.4]}
4. Qf3 {[%clk 0:02:49.7]} 4... d5 {[%clk 0:02:52.4]} 5. Nc3 {[%clk 0:02:49.4]}
5... Bb4 {[%clk 0:02:50.2]} 6. Ne2 {[%clk 0:02:28.7]} 6... Bb7 {[%clk 0:02:36]}
7. a3 {[%clk 0:02:24.2]} 7... Be7 {[%clk 0:02:35.6]} 8. g4 {[%clk 0:02:12.8]}
8... c5 {[%clk 0:02:21.4]} 9. g5 {[%clk 0:02:00.3]} 9... Ne4 {[%clk 0:02:11.3]}
10. Nxe4 {[%clk 0:01:59.9]} 10... dxe4 {[%clk 0:02:12.2]} 11. Qg3 {[%clk
0:01:58.9]} 11... Nc6 {[%clk 0:02:08]} 12. O-O-O {[%clk 0:01:51.7]} 12... O-O
{[%clk 0:01:34.4]} 13. Bg2 {[%clk 0:01:27.4]} 13... Na5 {[%clk 0:01:16.7]} 14.
dxc5 {[%clk 0:01:16.3]} 14... Qc8 {[%clk 0:01:16.3]} 15. Bd6 {[%clk 0:01:14.6]}
15... Bxd6 {[%clk 0:01:00.1]} 16. cxd6 {[%clk 0:01:15.5]} 16... Nb3+ {[%clk
0:00:46.2]} 17. Kb1 {[%clk 0:01:14.3]} 17... Nc5 {[%clk 0:00:47.1]} 18. Nf4
{[%clk 0:00:54.1]} 18... Nd7 {[%clk 0:00:40]} 19. h4 {[%clk 0:00:44.4]} 19... b5
{[%clk 0:00:36.7]} 20. h5 {[%clk 0:00:35.1]} 20... Nc5 {[%clk 0:00:27.8]} 21.
Bh3 {[%clk 0:00:22.6]} 21... Qe8 {[%clk 0:00:20.4]} 22. g6 {[%clk 0:00:22]}
22... fxg6 {[%clk 0:00:20.2]} 23. hxg6 {[%clk 0:00:22.1]} 23... h6 {[%clk
0:00:20.3]} 24. b4 {[%clk 0:00:19.5]} 24... Rxf4 {[%clk 0:00:18.3]} 25. Qxf4
{[%clk 0:00:17.8]} 25... Na4 {[%clk 0:00:18.3]} 26. d7 {[%clk 0:00:14]} 26...
Nc3+ {[%clk 0:00:17.8]} 27. Ka1 {[%clk 0:00:14]} 27... Qd8 {[%clk 0:00:16.2]}
28. Qf7+ {[%clk 0:00:13.4]} 28... Kh8 {[%clk 0:00:15.8]} 29. Bxe6 {[%clk
0:00:13.3]} 29... a5 {[%clk 0:00:12.2]} 30. Rxh6+ {[%clk 0:00:12.9]} 1-0

[Event "*** SCC Grand Prix: Titled Tuesday Blitz"]
[Site "Chess.com"]
[Date "2020.10.13"]
[Round "5"]
[White "nitpicker"]
[Black "IvanSoriano1"]
[Result "0-1"]
[WhiteElo "2287"]
[BlackElo "2507"]
[TimeControl "180+1"]
[EndTime "10:55:46 PDT"]
[Termination "IvanSoriano1 won on time"]

1. d4 {[%clk 0:03:00.9]} 1... Nf6 {[%clk 0:02:57.1]} 2. c4 {[%clk 0:03:00.8]}
2... e6 {[%clk 0:02:56]} 3. g3 {[%clk 0:02:59.8]} 3... d5 {[%clk 0:02:55.6]} 4.
Nf3 {[%clk 0:02:59.3]} 4... Be7 {[%clk 0:02:55.4]} 5. Bg2 {[%clk 0:02:59.2]}
5... O-O {[%clk 0:02:55.4]} 6. O-O {[%clk 0:02:59.1]} 6... dxc4 {[%clk
0:02:54.2]} 7. Ne5 {[%clk 0:02:59.1]} 7... Qd6 {[%clk 0:02:53.3]} 8. Na3 {[%clk
0:02:46.7]} 8... Qa6 {[%clk 0:02:51.1]} 9. Naxc4 {[%clk 0:02:41.8]} 9... Rd8
{[%clk 0:02:47.3]} 10. Qb3 {[%clk 0:02:04.8]} 10... c6 {[%clk 0:02:28.1]} 11.
Rd1 {[%clk 0:01:53.4]} 11... Nbd7 {[%clk 0:02:26.3]} 12. e3 {[%clk 0:01:50.9]}
12... Nb6 {[%clk 0:01:58.1]} 13. Bf1 {[%clk 0:01:47.5]} 13... Nxc4 {[%clk
0:01:56.4]} 14. Nxc4 {[%clk 0:01:45]} 14... b5 {[%clk 0:01:45.2]} 15. Ne5 {[%clk
0:01:40.3]} 15... Qb6 {[%clk 0:01:45.1]} 16. Bg2 {[%clk 0:01:26.7]} 16... Bb7
{[%clk 0:01:42.9]} 17. Bd2 {[%clk 0:01:21.9]} 17... a6 {[%clk 0:01:42]} 18. Nd3
{[%clk 0:01:13.5]} 18... Nd5 {[%clk 0:01:37]} 19. a4 {[%clk 0:00:55.8]} 19...
Rdc8 {[%clk 0:01:24.1]} 20. a5 {[%clk 0:00:52.5]} 20... Qa7 {[%clk 0:01:21.1]}
21. Rac1 {[%clk 0:00:50.2]} 21... c5 {[%clk 0:01:15.4]} 22. dxc5 {[%clk
0:00:47.9]} 22... Bxc5 {[%clk 0:01:16]} 23. Nxc5 {[%clk 0:00:46.2]} 23... Rxc5
{[%clk 0:01:16.9]} 24. e4 {[%clk 0:00:45.5]} 24... Rxc1 {[%clk 0:01:14.5]} 25.
Bxc1 {[%clk 0:00:39.7]} 25... Nf6 {[%clk 0:01:12.8]} 26. Be3 {[%clk 0:00:38.3]}
26... Qb8 {[%clk 0:01:12.2]} 27. Bb6 {[%clk 0:00:35.9]} 27... Qe8 {[%clk
0:01:01.6]} 28. Qe3 {[%clk 0:00:30.9]} 28... Rc8 {[%clk 0:00:59.6]} 29. h3
{[%clk 0:00:26.1]} 29... h6 {[%clk 0:00:59.4]} 30. Rd2 {[%clk 0:00:22.3]} 30...
Qc6 {[%clk 0:00:58.1]} 31. f3 {[%clk 0:00:17.3]} 31... Qc1+ {[%clk 0:00:55.4]}
32. Kh2 {[%clk 0:00:15.6]} 32... Qc4 {[%clk 0:00:47.5]} 33. Qd4 {[%clk 0:00:14]}
33... Qc6 {[%clk 0:00:41.8]} 34. Qd6 {[%clk 0:00:11.4]} 34... Qxd6 {[%clk
0:00:37.4]} 35. Rxd6 {[%clk 0:00:10.4]} 35... Rc2 {[%clk 0:00:38]} 36. Bd4
{[%clk 0:00:10.3]} 36... Nxe4 {[%clk 0:00:37.1]} 37. Rd8+ {[%clk 0:00:07.7]}
37... Kh7 {[%clk 0:00:36.6]} 38. g4 {[%clk 0:00:03.1]} 38... Ng5 {[%clk
0:00:34.3]} 0-1

[Event "*** SCC Grand Prix: Titled Tuesday Blitz"]
[Site "Chess.com"]
[Date "2020.10.13"]
[Round "5"]
[White "PetrolulSah"]
[Black "annacramling"]
[Result "0-1"]
[WhiteElo "2156"]
[BlackElo "1993"]
[TimeControl "180+1"]
[EndTime "10:55:46 PDT"]
[Termination "annacramling won by checkmate"]

1. d4 {[%clk 0:03:00.9]} 1... Nf6 {[%clk 0:02:57.8]} 2. c4 {[%clk 0:03:00.1]}
2... e6 {[%clk 0:02:57.2]} 3. g3 {[%clk 0:02:58.4]} 3... Bb4+ {[%clk 0:02:54.9]}
4. Bd2 {[%clk 0:02:58.3]} 4... Be7 {[%clk 0:02:50.4]} 5. Bg2 {[%clk 0:02:57.7]}
5... d5 {[%clk 0:02:50.5]} 6. Nf3 {[%clk 0:02:57.5]} 6... c6 {[%clk 0:02:48.4]}
7. O-O {[%clk 0:02:57.6]} 7... Nbd7 {[%clk 0:02:47.5]} 8. Nc3 {[%clk 0:02:54.3]}
8... O-O {[%clk 0:02:47.3]} 9. b3 {[%clk 0:02:53.9]} 9... Re8 {[%clk 0:02:41.7]}
10. Qc2 {[%clk 0:02:52.9]} 10... Bd6 {[%clk 0:02:38.8]} 11. e4 {[%clk
0:02:52.1]} 11... dxe4 {[%clk 0:02:35]} 12. Nxe4 {[%clk 0:02:53]} 12... Nxe4
{[%clk 0:02:35.3]} 13. Qxe4 {[%clk 0:02:53.1]} 13... e5 {[%clk 0:02:35.6]} 14.
Rfe1 {[%clk 0:02:31.1]} 14... Nf6 {[%clk 0:02:29.7]} 15. Qh4 {[%clk 0:02:23.8]}
15... exd4 {[%clk 0:01:31.3]} 16. Rxe8+ {[%clk 0:02:05.1]} 16... Qxe8 {[%clk
0:01:30.6]} 17. Re1 {[%clk 0:02:04.6]} 17... Qd8 {[%clk 0:01:22.1]} 18. Nxd4
{[%clk 0:02:00.2]} 18... Bc5 {[%clk 0:01:19]} 19. Bc3 {[%clk 0:01:56.9]} 19...
Be6 {[%clk 0:00:57.4]} 20. Nxe6 {[%clk 0:01:46.5]} 20... fxe6 {[%clk 0:00:58.3]}
21. Rxe6 {[%clk 0:01:38.4]} 21... Qd1+ {[%clk 0:00:56.6]} 22. Re1 {[%clk
0:01:37.2]} 22... Qc2 {[%clk 0:00:53]} 23. Bd4 {[%clk 0:01:19.4]} 23... Qd2
{[%clk 0:00:37.5]} 24. Bxc5 {[%clk 0:01:15.7]} 24... Qxe1+ {[%clk 0:00:37.2]}
25. Bf1 {[%clk 0:01:15.7]} 25... Ne4 {[%clk 0:00:33.1]} 26. Be3 {[%clk
0:01:13.6]} 26... Re8 {[%clk 0:00:16.4]} 27. Kg2 {[%clk 0:01:07.4]} 27... Nd2
{[%clk 0:00:11.7]} 28. Bd3 {[%clk 0:01:07]} 28... g6 {[%clk 0:00:05.8]} 29. Qf6
{[%clk 0:01:01.5]} 29... Rf8 {[%clk 0:00:04.9]} 30. Qe6+ {[%clk 0:00:59.7]}
30... Kg7 {[%clk 0:00:04.7]} 31. Qe5+ {[%clk 0:00:56]} 31... Kg8 {[%clk
0:00:04.8]} 32. Qe6+ {[%clk 0:00:36.1]} 32... Kg7 {[%clk 0:00:05]} 33. Qd7+
{[%clk 0:00:35]} 33... Rf7 {[%clk 0:00:04.4]} 34. Qd4+ {[%clk 0:00:34.8]} 34...
Kg8 {[%clk 0:00:04.5]} 35. Bxg6 {[%clk 0:00:29.5]} 35... Rxf2+ {[%clk
0:00:03.6]} 36. Bxf2 {[%clk 0:00:28.5]} 36... Qf1# {[%clk 0:00:04.1]} 0-1

[Event "*** SCC Grand Prix: Titled Tuesday Blitz"]
[Site "Chess.com"]
[Date "2020.10.13"]
[Round "5"]
[White "AlexTriapishko"]
[Black "SamuelGhimpu2003"]
[Result "1-0"]
[WhiteElo "2799"]
[BlackElo "2572"]
[TimeControl "180+1"]
[EndTime "10:55:47 PDT"]
[Termination "AlexTriapishko won by resignation"]

1. Nf3 {[%clk 0:02:47.2]} 1... Nf6 {[%clk 0:02:58.9]} 2. g3 {[%clk 0:02:44.1]}
2... g6 {[%clk 0:02:59.3]} 3. b3 {[%clk 0:02:43.4]} 3... Bg7 {[%clk 0:03:00.2]}
4. Bb2 {[%clk 0:02:44.1]} 4... O-O {[%clk 0:02:59.4]} 5. Bg2 {[%clk 0:02:44.7]}
5... c5 {[%clk 0:02:57.4]} 6. O-O {[%clk 0:02:44.1]} 6... Nc6 {[%clk 0:02:51.5]}
7. d4 {[%clk 0:02:30.7]} 7... cxd4 {[%clk 0:02:52.4]} 8. Nxd4 {[%clk 0:02:29.1]}
8... Nxd4 {[%clk 0:02:32.5]} 9. Bxd4 {[%clk 0:02:25.4]} 9... d6 {[%clk
0:02:31.6]} 10. c4 {[%clk 0:02:24.5]} 10... Qc7 {[%clk 0:02:30.7]} 11. Nc3
{[%clk 0:02:24.2]} 11... Bd7 {[%clk 0:02:30.5]} 12. Bxf6 {[%clk 0:02:20]} 12...
exf6 {[%clk 0:02:26.4]} 13. Rc1 {[%clk 0:02:17.7]} 13... Rfe8 {[%clk 0:02:09.4]}
14. e3 {[%clk 0:02:14.8]} 14... f5 {[%clk 0:02:02.3]} 15. Nd5 {[%clk 0:02:14.1]}
15... Qa5 {[%clk 0:01:59.5]} 16. b4 {[%clk 0:02:09.9]} 16... Qd8 {[%clk
0:01:59.7]} 17. Qb3 {[%clk 0:02:07.4]} 17... a5 {[%clk 0:01:56]} 18. b5 {[%clk
0:02:03.1]} 18... h5 {[%clk 0:01:44.1]} 19. b6 {[%clk 0:01:57.2]} 19... a4
{[%clk 0:01:39.5]} 20. Qb4 {[%clk 0:01:52.5]} 20... Rb8 {[%clk 0:01:36.5]} 21.
Nc7 {[%clk 0:01:47]} 21... Re7 {[%clk 0:01:32.4]} 22. Qxd6 {[%clk 0:01:40.8]}
22... Be5 {[%clk 0:01:31.2]} 23. Qb4 {[%clk 0:01:39]} 23... Qf8 {[%clk
0:01:23.6]} 24. Rfd1 {[%clk 0:01:33.5]} 24... h4 {[%clk 0:01:23.9]} 25. Nd5
{[%clk 0:01:25.7]} 25... Re6 {[%clk 0:01:20.7]} 26. Qxf8+ {[%clk 0:01:18.6]}
26... Kxf8 {[%clk 0:01:21.6]} 27. c5 {[%clk 0:01:06.9]} 27... hxg3 {[%clk
0:01:15.6]} 28. hxg3 {[%clk 0:01:07.8]} 28... Bc6 {[%clk 0:00:40.5]} 29. Nb4
{[%clk 0:00:46.3]} 29... Bb5 {[%clk 0:00:35.3]} 30. Bf1 {[%clk 0:00:38.9]} 30...
Be8 {[%clk 0:00:34.5]} 31. Bc4 {[%clk 0:00:35.8]} 31... Re7 {[%clk 0:00:35.1]}
32. Nd5 {[%clk 0:00:34.3]} 32... Re6 {[%clk 0:00:34.5]} 33. Nc7 {[%clk
0:00:32.1]} 33... Rf6 {[%clk 0:00:34.4]} 34. Nxe8 {[%clk 0:00:30.4]} 34... Rxe8
{[%clk 0:00:35.3]} 35. Rd7 {[%clk 0:00:29]} 35... Rc8 {[%clk 0:00:32.4]} 36. Bd5
{[%clk 0:00:26.6]} 36... Bd6 {[%clk 0:00:30.2]} 37. c6 {[%clk 0:00:18.4]} 37...
bxc6 {[%clk 0:00:31.1]} 38. b7 {[%clk 0:00:18.5]} 38... Rb8 {[%clk 0:00:30.2]}
39. Rxc6 {[%clk 0:00:19]} 39... Rxb7 {[%clk 0:00:24.7]} 1-0

[Event "*** SCC Grand Prix: Titled Tuesday Blitz"]
[Site "Chess.com"]
[Date "2020.10.13"]
[Round "5"]
[White "ajedrezhoy"]
[Black "Brave_spirit12"]
[Result "0-1"]
[WhiteElo "2244"]
[BlackElo "2487"]
[TimeControl "180+1"]
[EndTime "10:55:51 PDT"]
[Termination "Brave_spirit12 won on time"]

1. d4 {[%clk 0:03:00.9]} 1... Nf6 {[%clk 0:02:59.7]} 2. Nf3 {[%clk 0:02:58.8]}
2... c5 {[%clk 0:02:59.3]} 3. e3 {[%clk 0:02:56.9]} 3... g6 {[%clk 0:02:57.6]}
4. dxc5 {[%clk 0:02:54.9]} 4... Bg7 {[%clk 0:02:56]} 5. Nbd2 {[%clk 0:02:52.3]}
5... O-O {[%clk 0:02:54.2]} 6. a3 {[%clk 0:02:47.5]} 6... Qc7 {[%clk 0:02:46]}
7. Be2 {[%clk 0:02:25.2]} 7... Qxc5 {[%clk 0:02:39.6]} 8. b4 {[%clk 0:02:19]}
8... Qc7 {[%clk 0:02:30.8]} 9. Bb2 {[%clk 0:02:18.7]} 9... d5 {[%clk 0:02:22.6]}
10. O-O {[%clk 0:02:15.2]} 10... Bf5 {[%clk 0:02:22.6]} 11. c4 {[%clk
0:02:09.8]} 11... dxc4 {[%clk 0:02:19.1]} 12. Bxc4 {[%clk 0:02:00.8]} 12... Nbd7
{[%clk 0:02:12.5]} 13. Rc1 {[%clk 0:01:57.6]} 13... Qd6 {[%clk 0:02:09.8]} 14.
Nb3 {[%clk 0:01:47.5]} 14... Rac8 {[%clk 0:01:55.2]} 15. Qxd6 {[%clk 0:01:42.2]}
15... exd6 {[%clk 0:01:56.1]} 16. Nbd4 {[%clk 0:01:34.6]} 16... Be4 {[%clk
0:01:47.9]} 17. Ng5 {[%clk 0:01:20]} 17... Bd5 {[%clk 0:01:29.9]} 18. Bxd5
{[%clk 0:01:04.8]} 18... Nxd5 {[%clk 0:01:30.8]} 19. Ne4 {[%clk 0:00:57.2]}
19... Be5 {[%clk 0:01:12.8]} 20. Ba1 {[%clk 0:00:49.5]} 20... f5 {[%clk
0:01:09.8]} 21. Ng5 {[%clk 0:00:44.1]} 21... N7b6 {[%clk 0:01:03.4]} 22. Nge6
{[%clk 0:00:42.6]} 22... Rfe8 {[%clk 0:01:02.3]} 23. Ng5 {[%clk 0:00:22.5]}
23... Nc4 {[%clk 0:00:57.2]} 24. Nb5 {[%clk 0:00:20.5]} 24... a6 {[%clk
0:00:46.3]} 25. Bxe5 {[%clk 0:00:15.4]} 25... axb5 {[%clk 0:00:31.6]} 26. Bd4
{[%clk 0:00:12.6]} 26... Nxa3 {[%clk 0:00:28.5]} 27. Ra1 {[%clk 0:00:10.4]}
27... Nc2 {[%clk 0:00:26.8]} 28. Ra7 {[%clk 0:00:09.9]} 28... Nxd4 {[%clk
0:00:26.6]} 29. exd4 {[%clk 0:00:09.7]} 29... Re7 {[%clk 0:00:26.7]} 30. h4
{[%clk 0:00:08]} 30... h6 {[%clk 0:00:26]} 31. Nf3 {[%clk 0:00:04.6]} 31... Nxb4
{[%clk 0:00:26.3]} 32. Rb1 {[%clk 0:00:04.4]} 32... Rc4 {[%clk 0:00:22.6]} 0-1

[Event "*** SCC Grand Prix: Titled Tuesday Blitz"]
[Site "Chess.com"]
[Date "2020.10.13"]
[Round "5"]
[White "AurumO"]
[Black "DrMamaliga"]
[Result "0-1"]
[WhiteElo "1926"]
[BlackElo "2363"]
[TimeControl "180+1"]
[EndTime "10:55:54 PDT"]
[Termination "DrMamaliga won on time"]

1. e4 {[%clk 0:03:00.9]} 1... d6 {[%clk 0:02:59.6]} 2. d4 {[%clk 0:02:55.5]}
2... Nf6 {[%clk 0:02:59.1]} 3. Bd3 {[%clk 0:02:53.7]} 3... g6 {[%clk 0:02:58.2]}
4. Nf3 {[%clk 0:02:53.9]} 4... Bg7 {[%clk 0:02:57.6]} 5. O-O {[%clk 0:02:54]}
5... O-O {[%clk 0:02:57]} 6. c3 {[%clk 0:02:54.5]} 6... c5 {[%clk 0:02:56.6]} 7.
h3 {[%clk 0:02:51.7]} 7... Na6 {[%clk 0:02:50.7]} 8. Re1 {[%clk 0:02:43.1]} 8...
Nc7 {[%clk 0:02:46.9]} 9. Bg5 {[%clk 0:02:41.5]} 9... h6 {[%clk 0:02:43.2]} 10.
Bh4 {[%clk 0:02:35.1]} 10... Bd7 {[%clk 0:02:24.8]} 11. Nbd2 {[%clk 0:02:33.8]}
11... cxd4 {[%clk 0:02:23.5]} 12. cxd4 {[%clk 0:02:34.7]} 12... Ne6 {[%clk
0:02:20.1]} 13. e5 {[%clk 0:02:12.1]} 13... dxe5 {[%clk 0:02:12.4]} 14. dxe5
{[%clk 0:02:13]} 14... Nd5 {[%clk 0:02:08.7]} 15. Ne4 {[%clk 0:02:01.7]} 15...
Bc6 {[%clk 0:02:04.9]} 16. Bc4 {[%clk 0:01:42.7]} 16... g5 {[%clk 0:01:33.1]}
17. Bg3 {[%clk 0:01:40]} 17... Ndf4 {[%clk 0:01:31.4]} 18. Bb3 {[%clk
0:01:23.2]} 18... Qxd1 {[%clk 0:01:29.7]} 19. Raxd1 {[%clk 0:01:24.1]} 19...
Rfd8 {[%clk 0:01:28.3]} 20. Bxf4 {[%clk 0:01:10.3]} 20... Nxf4 {[%clk
0:01:27.1]} 21. Rxd8+ {[%clk 0:00:44.4]} 21... Rxd8 {[%clk 0:01:28]} 22. Ng3
{[%clk 0:00:43.2]} 22... Bxf3 {[%clk 0:01:19.7]} 23. gxf3 {[%clk 0:00:42.1]}
23... Nxh3+ {[%clk 0:01:20.2]} 24. Kh2 {[%clk 0:00:42.8]} 24... Nxf2 {[%clk
0:01:17.2]} 25. Nf5 {[%clk 0:00:38.1]} 25... Nd3 {[%clk 0:01:14.2]} 26. Re2
{[%clk 0:00:18.4]} 26... Bxe5+ {[%clk 0:01:12.4]} 27. Kh1 {[%clk 0:00:16.6]}
27... e6 {[%clk 0:01:10.7]} 28. Nxh6+ {[%clk 0:00:14]} 28... Kf8 {[%clk
0:01:10]} 29. Ng4 {[%clk 0:00:14.9]} 29... Bg7 {[%clk 0:01:09]} 30. Ne3 {[%clk
0:00:13.8]} 30... Nxb2 {[%clk 0:01:05.2]} 31. Nc4 {[%clk 0:00:12.8]} 31... Nxc4
{[%clk 0:01:03.9]} 32. Bxc4 {[%clk 0:00:13.7]} 32... Rc8 {[%clk 0:01:01.1]} 33.
Bb3 {[%clk 0:00:13.9]} 33... Rc3 {[%clk 0:00:58.8]} 34. Kg2 {[%clk 0:00:13.9]}
34... Ke7 {[%clk 0:00:58.6]} 35. Re4 {[%clk 0:00:13.9]} 35... b5 {[%clk
0:00:56.6]} 36. Rb4 {[%clk 0:00:11.5]} 36... a6 {[%clk 0:00:56.9]} 37. Re4
{[%clk 0:00:11.4]} 37... Kd6 {[%clk 0:00:54.2]} 38. Rg4 {[%clk 0:00:09.6]} 38...
Bf6 {[%clk 0:00:52.7]} 39. Re4 {[%clk 0:00:09.4]} 39... Be5 {[%clk 0:00:50]} 40.
Re2 {[%clk 0:00:08.9]} 40... a5 {[%clk 0:00:47.7]} 41. Rd2+ {[%clk 0:00:09]}
41... Kc7 {[%clk 0:00:46]} 42. Re2 {[%clk 0:00:07.6]} 42... Bf4 {[%clk
0:00:45.2]} 43. Kh3 {[%clk 0:00:02.5]} 43... a4 {[%clk 0:00:44.1]} 44. Bd1
{[%clk 0:00:01.8]} 44... Rxf3+ {[%clk 0:00:44]} 45. Kg4 {[%clk 0:00:01.2]} 45...
Rg3+ {[%clk 0:00:42.7]} 0-1

[Event "*** SCC Grand Prix: Titled Tuesday Blitz"]
[Site "Chess.com"]
[Date "2020.10.13"]
[Round "5"]
[White "Reader777"]
[Black "Barmen_EV"]
[Result "1-0"]
[WhiteElo "2701"]
[BlackElo "2497"]
[TimeControl "180+1"]
[EndTime "10:56:00 PDT"]
[Termination "Reader777 won on time"]

1. d4 {[%clk 0:03:00.9]} 1... d5 {[%clk 0:02:59.8]} 2. c4 {[%clk 0:03:00.6]}
2... e6 {[%clk 0:02:59.9]} 3. Nc3 {[%clk 0:02:59.4]} 3... Bb4 {[%clk 0:03:00.1]}
4. Nf3 {[%clk 0:02:56.2]} 4... Nf6 {[%clk 0:03:00.3]} 5. Bg5 {[%clk 0:02:55.6]}
5... h6 {[%clk 0:03:00.2]} 6. Bh4 {[%clk 0:02:55.2]} 6... g5 {[%clk 0:02:59.6]}
7. Bg3 {[%clk 0:02:53.9]} 7... Ne4 {[%clk 0:03:00.5]} 8. Nd2 {[%clk 0:02:41.8]}
8... Nxc3 {[%clk 0:02:33.9]} 9. bxc3 {[%clk 0:02:40.6]} 9... Bxc3 {[%clk
0:02:34.8]} 10. Rc1 {[%clk 0:02:40.5]} 10... Bxd4 {[%clk 0:02:34.9]} 11. cxd5
{[%clk 0:02:39.4]} 11... Qxd5 {[%clk 0:02:21.3]} 12. e3 {[%clk 0:02:23.9]} 12...
Bb6 {[%clk 0:02:20.8]} 13. e4 {[%clk 0:02:00.4]} 13... Qd4 {[%clk 0:01:55.6]}
14. Rc4 {[%clk 0:01:52.7]} 14... Qg7 {[%clk 0:01:31.1]} 15. h4 {[%clk
0:01:47.5]} 15... Nc6 {[%clk 0:01:27.8]} 16. Be2 {[%clk 0:01:19.6]} 16... e5
{[%clk 0:00:55.9]} 17. Rxc6 {[%clk 0:00:32.1]} 17... bxc6 {[%clk 0:00:54.7]} 18.
Nc4 {[%clk 0:00:32.8]} 18... Bd4 {[%clk 0:00:46.9]} 19. Qa4 {[%clk 0:00:32.4]}
19... Bd7 {[%clk 0:00:39.4]} 20. Qa5 {[%clk 0:00:32.3]} 20... gxh4 {[%clk
0:00:12.5]} 21. Rxh4 {[%clk 0:00:29]} 21... O-O {[%clk 0:00:09.6]} 22. Nxe5
{[%clk 0:00:26.5]} 22... Be6 {[%clk 0:00:07.4]} 23. Kf1 {[%clk 0:00:04.6]} 23...
f5 {[%clk 0:00:04]} 24. Bd3 {[%clk 0:00:03.8]} 24... Qg5 {[%clk 0:00:02.1]} 25.
exf5 {[%clk 0:00:03.6]} 25... Qc1+ {[%clk 0:00:01.5]} 26. Ke2 {[%clk 0:00:04]}
26... Qb2+ {[%clk 0:00:01.4]} 27. Kf3 {[%clk 0:00:04.4]} 1-0

[Event "*** SCC Grand Prix: Titled Tuesday Blitz"]
[Site "Chess.com"]
[Date "2020.10.13"]
[Round "5"]
[White "jacky72"]
[Black "Eliwood44"]
[Result "0-1"]
[WhiteElo "2556"]
[BlackElo "2427"]
[TimeControl "180+1"]
[EndTime "10:56:00 PDT"]
[Termination "Eliwood44 won by checkmate"]

1. d4 {[%clk 0:03:00.9]} 1... Nf6 {[%clk 0:02:59.8]} 2. c4 {[%clk 0:03:00.9]}
2... e6 {[%clk 0:03:00]} 3. Nf3 {[%clk 0:03:01]} 3... d5 {[%clk 0:03:00.2]} 4.
Nc3 {[%clk 0:03:00.8]} 4... Be7 {[%clk 0:03:00.1]} 5. Bg5 {[%clk 0:03:01.2]}
5... Nbd7 {[%clk 0:02:59.5]} 6. cxd5 {[%clk 0:03:00.5]} 6... exd5 {[%clk
0:02:57.8]} 7. e3 {[%clk 0:03:01]} 7... h6 {[%clk 0:02:57]} 8. Bh4 {[%clk
0:03:00.7]} 8... c6 {[%clk 0:02:57.5]} 9. Bd3 {[%clk 0:03:01.1]} 9... Nh5 {[%clk
0:02:57.5]} 10. Bxe7 {[%clk 0:02:59]} 10... Qxe7 {[%clk 0:02:58.4]} 11. Qc2
{[%clk 0:02:59.6]} 11... Nb6 {[%clk 0:02:54.1]} 12. h3 {[%clk 0:02:56.5]} 12...
Be6 {[%clk 0:02:36.9]} 13. O-O-O {[%clk 0:02:56.4]} 13... O-O-O {[%clk
0:02:35.7]} 14. Kb1 {[%clk 0:02:54.4]} 14... Kb8 {[%clk 0:02:35.9]} 15. Rc1
{[%clk 0:02:54.3]} 15... Nc8 {[%clk 0:02:34.7]} 16. Na4 {[%clk 0:02:54.4]} 16...
Nf6 {[%clk 0:02:33.4]} 17. Ne5 {[%clk 0:02:54]} 17... Nd7 {[%clk 0:02:31.5]} 18.
f4 {[%clk 0:02:52.2]} 18... Nxe5 {[%clk 0:02:30.6]} 19. fxe5 {[%clk 0:02:49.6]}
19... f6 {[%clk 0:02:30.4]} 20. exf6 {[%clk 0:02:48.5]} 20... Qxf6 {[%clk
0:02:25.6]} 21. Nc5 {[%clk 0:02:47.3]} 21... Rhe8 {[%clk 0:02:24.2]} 22. Nxb7
{[%clk 0:02:43.2]} 22... Kxb7 {[%clk 0:02:07.9]} 23. Qxc6+ {[%clk 0:02:41.3]}
23... Kb8 {[%clk 0:02:07.5]} 24. Qc7+ {[%clk 0:02:24.1]} 24... Ka8 {[%clk
0:02:01.4]} 25. Ba6 {[%clk 0:00:48.2]} 25... Bf5+ {[%clk 0:01:49.2]} 26. Ka1
{[%clk 0:00:33.8]} 26... Qxa6 {[%clk 0:01:47.3]} 27. Qxg7 {[%clk 0:00:34.4]}
27... Nb6 {[%clk 0:01:28.1]} 28. Rhf1 {[%clk 0:00:30.5]} 28... Rc8 {[%clk
0:01:19.8]} 29. Rce1 {[%clk 0:00:25.5]} 29... Bd3 {[%clk 0:01:05.9]} 30. Rf7
{[%clk 0:00:25.6]} 30... Bc4 {[%clk 0:01:05.1]} 31. a3 {[%clk 0:00:24.3]} 31...
Bb3 {[%clk 0:00:59.9]} 32. Qxh6 {[%clk 0:00:19.9]} 32... Qc4 {[%clk 0:00:45.5]}
33. Rff1 {[%clk 0:00:12.9]} 33... Rc6 {[%clk 0:00:41.2]} 34. Qh5 {[%clk
0:00:11.6]} 34... Rec8 {[%clk 0:00:40.7]} 35. Rb1 {[%clk 0:00:12.1]} 35... Bc2
{[%clk 0:00:38.9]} 36. Rbc1 {[%clk 0:00:11.8]} 36... Qb3 {[%clk 0:00:38.1]} 37.
Qe2 {[%clk 0:00:03.8]} 37... Na4 {[%clk 0:00:31]} 38. Rb1 {[%clk 0:00:04.3]}
38... Bxb1 {[%clk 0:00:28.4]} 39. Rxb1 {[%clk 0:00:05.2]} 39... Rc1 {[%clk
0:00:28.1]} 40. Qd3 {[%clk 0:00:01.5]} 40... Qxb2# {[%clk 0:00:24.6]} 0-1